Cogmind - Beta 17.1 @@@ ROGUE MODE // 2026.09.19 @ 17:07:34 Player: fai Result: Destroyed by G-73 Enforcer with Phase Gun Performance ------------- Evolutions (8) 4000 Regions Visited (24) 4800 Robots Destroyed (267) 1335 Value Destroyed (18177) 18177 Prototype IDs (34) 680 Alien Tech Used (2) 400 Bonus (40998) 40998 TOTAL SCORE: 70390 Bonus ------- Triggered High Security 500 High Alert Combat Kills 4732 Follower Combat Kills 11119 Prayed to X0-1V1 5000 Major X0-1V1 Interference 11600 Entered Garrisons 1600 Used RIF Installer 4500 Met Sigix 2000 Friendly Fire -53 Cogmind --------- Core Integrity 0/1475 Matter 470/500 Energy 99/100 System Corruption 23% Temperature Cool (0) Movement Core (50) Location -2/Research Parts ------- > --- POWER (2) -------- (None) > --- PROPULSION (6) --- (None) > --- UTILITY (11) ----- (None) > --- WEAPON (4) ------- (None) > --- INVENTORY (5) ---- Matter Drive Authchip [R/Combat] Subatomic Replicator Centrium Greatsword Peak State ------------ > --- POWER ------------ Cooled Antimatter Reactor Light Quantum Reactor > --- PROPULSION ------- Biometal Leg Centrium Leg Wheel Centrium Wheel High-density Centrium Wheel > --- UTILITY ---------- Experimental Power Amplifier Huge Storage Unit Enhanced Optical Array Experimental Armor Integrity Analyzer Advanced Force Field Relay Coupler [C] Relay Coupler [Hunter] Relay Coupler [Heavy] Relay Coupler [Proto] Relay Coupler [Proto] X0-1V1's Piety Tracker > --- WEAPON ----------- Enhanced Quantum Rifle Enhanced Nova Cannon Advanced Remote Datajack Heavy Scimitar of Distortion > --- INVENTORY -------- Light Ion Engine Vortex Chain Reactor Matter Drive Advanced Cooling System Advanced Cloaking Device Improved Utility Shielding Advanced Thermal Defense Suite Experimental Shock Absorption System Advanced Remote Force Field Hacking Suite Authchip [R/Combat] Authchip [R/Combat] Subatomic Replicator Core Cannon Railgun Chaos Jack Advanced Remote Datajack Centrium Greatsword [Rating: 187] Favorites ----------- Power Particle Reactor Engine Improved Ion Engine Power Core Fission Core Reactor Particle Reactor Propulsion Armored Huge Wheel Treads Armored Heavy Treads Leg Flexi-carbon Leg Wheel Armored Huge Wheel Hover Unit Antigrav System Utility Relay Coupler [C] Device Advanced Force Field Storage Huge Storage Unit Processor Enhanced Optical Array Hackware Relay Coupler [C] Protection Centrium Light Armor Plating Artifact Phase Armor Weapon Remote Datajack Energy Gun Quantum Rifle Energy Cannon Heavy Plasma Cannon Ballistic Gun Hypervelocity Railgun Ballistic Cannon Heavy Flak Cannon Launcher Gamma Bomb Array Special Weapon Remote Datajack Impact Weapon Impact Mace Slashing Weapon Axe Piercing Weapon Heavy Pick Special Melee Weapon Datajack Build | -11 -10 -9 -8 -8 -8 -8 -7 -7 -6 -6 -6 -6 -6 -6 -5 -5 -5 -4 -4 -3 -3 -3 -3 -2 ------- Run | Yrd Mat Mat Mat Gar Sto Gar Fac Gar Fac Gar Fac Gar Fac Gar Fac Upp Upp Fac Gar Res Gar Res Qua Res Slots Evolved 16 | . . 2 2 . . . 2 . 2 . . . . . 2 . . 2 . 2 . . . 2 Power . | . . . . . . . . . . . . . . . . . . . . . . . . . Propulsion 4 | . . 1 . . . . 1 . . . . . . . 1 . . . . . . . . 1 Utility 10 | . . 1 1 . . . 1 . 2 . . . . . 1 . . 1 . 2 . . . 1 Weapon 2 | . . . 1 . . . . . . . . . . . . . . 1 . . . . . . Parts Attached 327 | 9 13 14 9 12 10 15 7 17 21 24 3 12 7 6 24 1 1 13 28 9 16 1 31 24 Power 35 | 1 3 1 1 2 1 1 1 . 2 2 . . . 1 1 . . 2 3 . 2 1 6 4 Engine 13 | 1 3 1 1 2 1 . . . 1 . . . . . 1 . . . . . . . 1 1 Core 6 | . . . . . . 1 1 . 1 . . . . . . . . 1 1 . . . 1 . Reactor 16 | . . . . . . . . . . 2 . . . 1 . . . 1 2 . 2 1 4 3 Propulsion 58 | 2 5 3 . 2 2 2 1 3 2 2 1 . . . 5 . . 8 4 1 4 . 7 4 Treads 1 | . . . . . . . . . . . . . . . . . . . . . 1 . . . Leg 10 | . . . . . . . . . . . . . . . . . . 6 2 . . . . 2 Wheel 46 | 2 5 3 . 2 2 2 1 3 2 2 1 . . . 5 . . 1 2 1 3 . 7 2 Hover 1 | . . . . . . . . . . . . . . . . . . 1 . . . . . . Flight . | . . . . . . . . . . . . . . . . . . . . . . . . . Utility 155 | 4 3 1 5 4 3 8 5 8 12 12 2 11 7 4 14 1 . 3 10 8 7 . 14 9 Device 37 | 2 1 . 3 2 1 1 1 . 4 1 . 1 2 2 2 . . 2 1 3 . . 4 4 Storage 4 | 2 1 . . . . . . 1 . . . . . . . . . . . . . . . . Processor 7 | . 1 . . . . . . . . 1 . 1 . . 1 . . . . . . . . 3 Hackware 98 | . . . . 2 2 7 4 6 8 9 2 9 5 2 10 . . 1 9 5 7 . 9 1 Protection 8 | . . 1 2 . . . . 1 . 1 . . . . 1 1 . . . . . . . 1 Artifact 1 | . . . . . . . . . . . . . . . . . . . . . . . 1 . Weapon 79 | 2 2 9 3 4 4 4 . 6 5 8 . 1 . 1 4 . 1 . 11 . 3 . 4 7 Energy Gun 12 | . 1 2 . 1 . . . . . . . . . . 1 . . . 4 . 2 . . 1 Energy Cannon 11 | . . . . . 3 1 . 2 1 . . . . . 1 . . . 1 . . . . 2 Ballistic Gun 24 | 2 . 6 3 1 . . . 2 . 5 . 1 . . 1 . . . 3 . . . . . Ballistic Cannon 2 | . . . . . . . . . 2 . . . . . . . . . . . . . . . Launcher 7 | . 1 . . . . 1 . 1 1 . . . . . 1 . . . 1 . . . 1 . Special Weapon 13 | . . . . . . 2 . 1 . 2 . . . 1 . . 1 . 2 . . . 3 1 Impact Weapon 3 | . . 1 . . 1 . . . . 1 . . . . . . . . . . . . . . Slashing Weapon 4 | . . . . 1 . . . . . . . . . . . . . . . . 1 . . 2 Piercing Weapon 1 | . . . . . . . . . 1 . . . . . . . . . . . . . . . Special Melee Weapon 2 | . . . . 1 . . . . . . . . . . . . . . . . . . . 1 Unidentified Prototypes 19 | . 1 1 . . 4 . . . . . . . . . 4 1 . . . . . . . 8 Corrupted Parts 2 | . . . . . . . . . . . . . . . 1 . . . . . . . 1 . System Corruption 19 | . . . . . . . . . . . . . . . 9 . . . . . . . 10 . Parts Lost 82 | . 1 2 1 4 2 1 1 1 1 1 . 1 . . 10 2 . 2 5 . 8 . 26 13 Power 15 | . . . . 1 . . 1 . 1 . . . . . 2 . . . 1 . 1 . 5 3 Propulsion 25 | . . 1 . . . . . . . 1 . . . . 4 1 . 1 1 . 2 . 9 5 Utility 17 | . . 1 1 . 1 . . . . . . 1 . . 1 1 . . 1 . 2 . 5 3 Weapon 25 | . 1 . . 3 1 1 . 1 . . . . . . 3 . . 1 2 . 3 . 7 2 Highest Loss Streak 17 | . 1 1 1 3 2 1 1 1 1 1 . 1 . . 5 1 . 1 2 . 7 . 17 10 To Critical Strikes 5 | . . . . . . . . . . . . . . . 1 . . . . . . . 3 1 Average Backups 19 | 1 9 16 17 19 19 19 17 19 21 22 21 24 23 24 20 11 11 13 22 18 21 20 18 15 Power . | . . 2 1 1 . 1 . . . . 1 1 1 . . 1 1 1 1 . 1 1 . 1 Propulsion 1 | 1 6 6 5 3 3 2 1 1 1 1 . 1 1 1 . . . . 1 . . 1 1 . Utility 12 | . 1 2 3 10 11 11 11 14 13 14 15 17 16 16 14 7 7 8 15 15 14 15 12 7 Weapon 3 | . . 4 5 3 3 2 2 3 4 4 3 3 3 3 4 1 2 1 1 2 3 2 1 2 Tool/Special . | . . . . . . . . . . . . . . . . . . . . . . . . . Unused Backups 65 | . 1 . 1 5 3 7 . 2 2 11 . 4 . 2 3 . . 1 3 1 9 1 4 5 Power 8 | . . . . 1 . 1 . . . 3 . . . . . . . 1 1 . . . 1 . Propulsion 4 | . . . . . 2 1 . . . . . . . . . . . . . . 1 . . . Utility 35 | . 1 . . 1 1 4 . 1 1 6 . 4 . 2 2 . . . 1 1 4 1 2 3 Weapon 13 | . . . 1 2 . 1 . 1 1 2 . . . . . . . . . . 4 . . 1 Tool/Special 5 | . . . . 1 . . . . . . . . . . 1 . . . 1 . . . 1 1 Average Slot Usage (%) 86 | . 99 98 98 99 97 92 90 88 81 84 81 85 86 84 86 67 64 71 88 85 84 90 80 76 Engine 2 | . 13 11 9 8 9 5 . . . 1 . . . . . . . . . . . . . . Core 1 | . . . . . . 3 6 7 5 . . . . . . . . 1 4 4 . . 1 . Reactor 3 | . . . . . . . . . . 4 6 6 6 8 9 5 5 6 5 4 8 9 6 5 Leg 1 | . . . . . . . . . . . . . . . . . . 12 16 1 . . . 5 Wheel 17 | . 27 32 27 27 27 20 22 23 18 19 14 20 20 17 17 8 5 2 4 11 13 14 13 11 Device 7 | . 6 16 15 13 21 8 6 . 7 8 13 6 4 7 4 . . 3 2 8 8 9 8 12 Storage 6 | . 14 11 9 9 9 9 7 7 5 6 6 6 6 6 5 5 5 5 5 4 4 4 4 3 Processor 2 | . 7 . . . . . . . . . . 5 6 6 5 9 5 5 5 4 4 4 4 6 Hackware 17 | . . . . 5 1 17 23 23 23 20 20 20 21 16 22 11 11 10 22 23 23 28 26 17 Protection 2 | . . 4 10 8 3 . . 3 . 3 . . . . . 6 11 8 1 1 . . . . Energy Gun 3 | . 6 6 . 6 9 9 1 . . . . . . . . . . . 7 . 6 9 5 2 Energy Cannon 2 | . . . . . 8 5 5 4 9 . . . . . . 1 5 5 . 4 1 1 2 1 Ballistic Gun 7 | . 20 14 26 16 4 3 . 9 . 5 13 12 13 13 8 5 5 2 1 9 2 . . . Special Weapon 3 | . . . . . . 3 7 3 5 4 5 5 6 4 3 3 5 5 5 4 3 4 3 2 Slashing Weapon 1 | . . . . 3 2 3 7 3 . . . . . . . . . . . . 2 2 1 2 Peak Build Rating 187 | 7 24 35 46 51 54 63 64 64 81 87 86 96 89 95 106 86 85 112 115 130 140 134 150 187 Average Rating 80 | 6 10 30 43 44 48 54 61 57 69 76 80 86 86 87 95 80 85 93 103 122 128 130 123 152 On Entrance 73 | . 7 24 35 46 48 48 61 63 61 65 80 81 86 86 92 80 86 85 105 112 114 128 133 105 Avg Prop Armor Cover (%) 6 | . . . . . . . . . . . . . . . . . . 3 4 3 16 . 7 9 Naked Turns 19 | . . . . . . . . . . . . . . . . . . . . . . . . 19 Heaviest Build 195 | 13 51 59 65 67 73 67 65 108 125 127 126 126 129 138 144 131 131 151 135 172 176 163 195 164 Greatest Support 100 | 26 26 36 36 36 36 40 52 66 66 66 72 72 72 72 72 56 28 90 100 66 66 66 72 46 Greatest Overweight (x) 43 | 3 3 1 1 1 2 1 1 1 1 3 2 1 1 2 3 4 4 43 4 2 6 2 6 4 Average Overweight (x) 1 | . . 1 1 1 1 1 1 1 1 1 1 1 1 1 1 1 4 4 1 2 2 2 2 2 Largest Inventory Capacity 25 | 8 20 20 20 20 20 20 20 25 25 25 25 25 25 25 25 25 25 25 25 25 25 25 25 25 Average Capacity 23 | 7 14 20 20 20 20 20 20 21 25 25 25 25 25 25 25 25 25 25 25 25 25 25 25 24 Most Carried 25 | 5 16 20 20 20 20 20 19 24 25 25 23 25 25 25 25 13 11 19 25 22 25 23 25 22 Average Carried 20 | 1 9 16 17 19 19 19 18 19 23 23 21 24 23 24 21 12 11 13 23 19 22 21 19 18 Final Capacity 25 | 8 20 20 20 20 20 20 20 25 25 25 25 25 25 25 25 25 25 25 25 25 25 25 25 5 Final Carried 25 | 5 15 18 19 20 20 20 18 24 24 23 23 25 20 25 13 11 11 19 23 20 20 22 16 5 Class Distribution -------------------- 28% | Botlord-Tank 21% | Botlord-Mutant 11% | Botlord-Gunner 9% | Mutant 6% | Bothacker-Mutant 4% | Bothacker-Tank 4% | Bothacker-Gunner 4% | Commander-Skirmisher 3% | Tank 3% | Botlord-Skirmisher Dominant Class ---------------- Mutant | -10/Materials Mutant | -9/Materials Tank | -8/Materials Tank | -8/Garrison Bothacker-Tank | -8/Storage Bothacker-Mutant | -8/Garrison Botlord-Mutant | -7/Factory Botlord-Mutant | -7/Garrison Bothacker-Gunner | -6/Factory Botlord-Tank | -6/Garrison Botlord-Gunner | -6/Factory Commander-Skirmisher | -6/Garrison Botlord-Tank | -6/Factory Botlord-Tank | -6/Garrison Botlord-Tank | -5/Factory Botlord-Mutant | -5/Upper Caves Botlord-Tank | -5/Upper Caves Botlord-Tank | -4/Factory Botlord-Skirmisher | -4/Garrison Botlord-Tank | -3/Research Botlord-Tank | -3/Garrison Botlord-Tank | -3/Research Botlord-Tank | -3/Quarantine Botlord-Mutant | -2/Research Resources | -11 -10 -9 -8 -8 -8 -8 -7 -7 -6 -6 -6 -6 -6 -6 -5 -5 -5 -4 -4 -3 -3 -3 -3 -2 ----------- Run | Yrd Mat Mat Mat Gar Sto Gar Fac Gar Fac Gar Fac Gar Fac Gar Fac Upp Upp Fac Gar Res Gar Res Qua Res Matter Collected 13814 | 368 376 552 538 908 567 584 . 732 677 1188 316 1043 399 1055 929 . . 514 656 346 1007 . 843 216 Remotely 253 | 253 . . . . . . . . . . . . . . . . . . . . . . . . Salvage Created 10723 | 181 587 649 646 1016 530 656 . 629 434 548 316 603 24 365 781 111 . 404 488 60 846 68 419 362 Parts 559 | 17 37 35 46 52 15 30 . 25 24 34 13 45 2 22 37 5 . 10 21 8 35 3 23 20 Haulers Intercepted 1 | . . . . . 1 . . . . . . . . . . . . . . . . . . . Recyclers Shooed 2 | 1 . . . . . . . . . . . . . . . . . . . 1 . . . . Parts Field Recycled . | . . . . . . . . . . . . . . . . . . . . . . . . . Retrieved Matter . | . . . . . . . . . . . . . . . . . . . . . . . . . Parts Self-Destructed 5 | . . . . . . . . . . . . . . . . 5 . . . . . . . . Prevented . | . . . . . . . . . . . . . . . . . . . . . . . . . Parts Restored . | . . . . . . . . . . . . . . . . . . . . . . . . . Kills | -11 -10 -9 -8 -8 -8 -8 -7 -7 -6 -6 -6 -6 -6 -6 -5 -5 -5 -4 -4 -3 -3 -3 -3 -2 ------- Run | Yrd Mat Mat Mat Gar Sto Gar Fac Gar Fac Gar Fac Gar Fac Gar Fac Upp Upp Fac Gar Res Gar Res Qua Res Combat Hostiles Destroyed 228 | . 19 13 22 25 10 14 . 13 13 19 4 11 1 8 13 2 . 2 13 . 12 1 8 5 Melee 4 | . . . . . . . . . . . . . . . . . . . 2 . . . 1 1 Guns 139 | . 12 13 16 23 6 4 . 9 . 3 4 10 1 8 7 1 . . 4 . 12 1 4 1 Cannons 36 | . . . . . 4 . . . 10 13 . . . . 2 1 . 1 1 . . . 1 3 AOE 43 | . 7 . 6 2 . 9 . 4 2 3 . . . . 3 . . . 5 . . . 2 . Classes Destroyed 20 | 3 3 2 2 2 1 . . 1 . 1 . . . . . . . . . . 2 . 3 . Worker 6 | 1 1 . . . . . . . . . 1 . . . . . . 1 . . . . 1 1 Builder 9 | . . . 1 . . . . . 2 . . . . . 1 . . 2 . 2 . . . 1 Tunneler 6 | 4 1 . . . . . . . . . . . . . . . . 1 . . . . . . Hauler 1 | . . . . . 1 . . . . . . . . . . . . . . . . . . . Recycler 4 | 1 1 . . . . . . . . . 1 . . . . . . 1 . . . . . . Operator 4 | . 2 1 . . 1 . . . . . . . . . . . . . . . . . . . Watcher 3 | . . 1 . . . . . 1 . . . 1 . . . . . . . . . . . . Swarmer 76 | . 8 . 10 7 2 9 . 3 9 4 2 1 1 4 5 . . . 6 . 4 . 1 . Cutter 5 | . . . . . . . . . . 3 . 2 . . . . . . . . . . . . Saboteur 1 | . . . . . . . . . . . . . . . . . . . . . 1 . . . Grunt 74 | . 11 6 8 11 7 1 . 3 3 10 1 . . 1 2 . . 3 . . 5 1 1 . Brawler 3 | . . . . . . 1 . . . . . 1 . 1 . . . . . . . . . . Duelist 2 | . . . . . . . . 1 . . . . . . 1 . . . . . . . . . Protector 1 | . . . . . . . . . . . . . . . . . . . . . . . 1 . Researcher 2 | . . . . . . . . . . . . . . . . . . . . . . . 2 . Sentry 28 | . . 7 3 2 2 . . 5 . . . 2 . 1 4 . . . 2 . . . . . Demolisher 2 | . . . . . . . . . . . . . . . . . . . . . . . 2 . Specialist 3 | . . . . . . . . . . . . . . . . . . . . . 1 . . 2 Hunter 11 | . . . 1 2 . . . 1 . . . 3 . . 1 2 . . . . . . . 1 Programmer 25 | . . . . 3 . 3 . 1 1 2 1 2 . 1 . . . . 5 . 1 . 3 2 Savage 1 | . . . . 1 . . . . . . . . . . . . . . . . . . . . Best Kill Streak 11 | 5 9 4 11 4 3 8 . 11 5 7 3 3 1 2 5 1 . 2 5 2 3 1 4 3 Combat Bots Only 11 | . 7 3 11 4 3 8 . 10 4 7 2 3 1 2 5 1 . 1 5 . 3 1 2 3 Max Kills in Single Turn 5 | 1 4 1 2 2 1 2 . 4 2 3 1 2 1 1 2 1 . 3 5 1 2 1 2 2 Gunslinging 1 | . . . . . . 1 . 1 . . . . . . . . . . . . 1 . . . Exploded 5 | . 3 . 2 2 . 2 . 4 2 3 . . . . 2 . . . 5 . . . 1 . Melee 1 | . . . . . . . . . . . . . . . . . . . 1 . . . 1 1 Uniques/NPCs Destroyed . | . . . . . . . . . . . . . . . . . . . . . . . . . Combat | -11 -10 -9 -8 -8 -8 -8 -7 -7 -6 -6 -6 -6 -6 -6 -5 -5 -5 -4 -4 -3 -3 -3 -3 -2 -------- Run | Yrd Mat Mat Mat Gar Sto Gar Fac Gar Fac Gar Fac Gar Fac Gar Fac Upp Upp Fac Gar Res Gar Res Qua Res Hostile Shots Fired 2133 | . 67 65 70 104 33 73 23 170 81 129 5 85 27 52 157 78 6 35 96 38 153 15 263 308 Missed 696 | . 16 19 32 23 8 22 7 63 27 37 1 27 13 21 55 24 4 14 25 15 51 4 83 105 Hits 1437 | . 51 46 38 81 25 51 16 107 54 92 4 58 14 31 102 54 2 21 71 23 102 11 180 203 Melee 1 | . . . . . . . . . . 1 . . . . . . . . . . . . . . Projectile 1436 | . 51 46 38 81 25 51 16 107 54 91 4 58 14 31 102 54 2 21 71 23 102 11 180 203 AOE 17 | . . . . . . . . . . 2 . 2 . . 5 . . . . 1 1 1 5 . Critical Strikes 51 | . . 1 . 1 . 1 1 1 1 2 . . . . 7 2 . 1 2 . 5 1 13 12 Part Disruptions 9 | . . . . . . . . . . 5 . . . . . . . 1 1 . 1 . 1 . Damage Taken 21001 | . 615 633 537 1018 360 727 142 962 783 913 32 557 95 241 1601 899 38 511 1084 403 1439 214 3505 3692 Core 3795 | . 107 177 68 94 52 163 17 146 94 71 . 91 3 43 197 76 . 39 131 54 145 . 650 1377 Absorbed by Shields 6848 | . . . . 88 24 . 20 139 352 705 33 398 68 252 973 . . 95 346 367 1198 176 652 962 Redirected to Core 107 | . . . . . . . . . . . . . . . . . . . . . . . 107 . Redirected to Shielding 15 | . . . . . . . . . . . . . . . . . . . . . . . . 15 Ignored by Resistances 469 | . . . . 48 . . . . . . . . . . 117 . . . 175 7 46 14 62 . Regen/Repaired (Parts) 656 | . . . . . . . . . 116 201 . . 48 53 . . . . . . . 238 . . Core Remaining (%) 70 | 100 57 74 . . . 47 . 77 . . . . . 82 . . 73 . 85 . . . 35 . Volleys Fired 1264 | 13 52 47 44 68 29 53 20 65 72 85 14 103 17 81 87 21 3 34 83 29 90 21 89 44 Largest 3 | 2 2 2 3 3 3 2 1 2 2 3 2 2 2 2 3 2 1 2 3 3 3 2 3 2 Hottest 301 | 40 60 105 75 135 248 170 85 113 180 180 75 75 75 75 240 120 5 120 198 193 193 188 301 300 Shots Fired 1969 | 26 91 94 119 183 71 67 20 89 91 131 25 132 22 107 131 42 4 45 104 39 148 28 115 45 Gun 1166 | 26 88 94 114 180 48 22 . 46 . 31 21 70 10 65 78 23 . 11 56 16 105 12 36 14 Cannon 266 | . . . . . 23 10 4 5 47 68 . . . . 7 19 1 17 6 4 9 5 13 28 Launcher 39 | . 3 . 5 3 . 6 . 2 1 1 . . . . 7 . . 4 2 . . . 5 . Special 498 | . . . . . . 29 16 36 43 31 4 62 12 42 39 . 3 13 40 19 34 11 61 3 Kinetic 949 | 26 82 52 114 145 20 7 . 46 2 90 21 70 10 65 68 23 . 11 2 16 79 . . . Thermal 461 | . 6 42 . 35 45 25 4 5 45 9 . . . . 7 19 1 17 54 4 35 17 49 42 Explosive 28 | . 3 . 5 3 . 6 . 2 1 1 . . . . . . . . 2 . . . 5 . Electromagnetic 33 | . . . . . 6 . . . . . . . . . 17 . . 4 6 . . . . . Robot Hit Streak 34 | 13 18 12 12 14 7 9 6 22 8 17 8 34 12 11 15 11 4 12 14 11 9 7 10 6 Robot Miss Streak 12 | 1 8 2 5 8 4 2 2 6 4 12 2 4 2 5 4 3 . 3 4 2 5 1 5 2 Penetration Max 4 | . . . . . . . . . . . . 1 . 1 3 . . . . 4 2 . . . Secondary Targets 22 | . . 1 7 3 1 2 . 2 . . . 1 . . . . . . 1 . 4 . . . Max Gunslinging Chain 1 | . . 1 1 1 1 1 . 1 . . . 1 . . . . . . 1 . 1 . . . Capacitor 19 | . . . . . . . . . . . . . . . . . . 5 14 . . . . . Shots Hit Robots 1357 | 19 57 64 59 101 50 67 12 91 45 103 16 94 17 68 88 27 3 35 79 30 111 17 79 25 Core Hits 611 | 7 39 25 44 48 22 28 . 67 15 82 7 23 1 17 47 6 . 25 20 10 39 2 22 15 Critical Kills 27 | . . . . . . . . . 1 . 2 6 1 2 1 . . 1 1 2 8 . . 2 Critical Parts Destroyed 51 | . 2 . 1 . . . . . . . . 4 3 5 7 . . . 4 5 17 . . 3 Critical Strikes 100 | . 2 2 1 4 8 1 . . 1 . 2 10 4 7 8 . . 1 8 8 28 . . 5 Burn 18 | . . 2 . 4 8 1 . . . . . . . . . . . . 3 . . . . . Meltdown 2 | . . . . . . . . . 1 . . . . . . . . 1 . . . . . . Destroy 74 | . 2 . 1 . . . . . . . 2 10 4 7 8 . . . 1 8 26 . . 5 Smash 4 | . . . . . . . . . . . . . . . . . . . 4 . . . . . Sever 2 | . . . . . . . . . . . . . . . . . . . . . 2 . . . Melee Attacks 198 | . . 6 3 30 6 52 . 22 1 9 . 5 . 7 7 . . 1 9 . 25 . 4 11 Impact 41 | . . 6 3 . . . . . . 3 . 5 . 7 7 . . 1 9 . . . . . Slashing 134 | . . . . 24 1 50 . 22 1 . . . . . . . . . . . 25 . 4 7 Piercing 10 | . . . . . . . . . . 6 . . . . . . . . . . . . . 4 Sneak Attacks 7 | . . . . 4 1 . . . . . . . . . 1 . . 1 . . . . . . Combat Hostiles . | . . . . . . . . . . . . . . . . . . . . . . . . . Follow-up Attacks . | . . . . . . . . . . . . . . . . . . . . . . . . . Damage Inflicted 30268 | 248 1225 959 1554 1885 1133 2697 . 2397 723 2213 286 771 120 689 1984 647 . 1679 1735 304 1921 282 2794 2022 Guns 13930 | 248 750 959 1019 1688 577 346 . 837 . 637 286 771 120 689 1075 237 . 201 815 224 895 282 905 369 Cannons 5650 | . . . . . 556 185 . 94 601 1337 . . . . 206 410 . 395 143 77 312 . 202 1132 Explosions 6942 | . 475 . 535 197 . 685 . 678 122 239 . . . . 617 . . 1023 446 . . . 1609 316 Melee 3743 | . . . . . . 1481 . 788 . . . . . . 86 . . 60 331 . 714 . 78 205 Ramming 3 | . . . . . . . . . . . . . . . . . . . . 3 . . . . Kinetic 10806 | 248 693 559 1019 1290 235 120 . 837 28 1815 286 771 120 689 894 237 . 201 8 224 532 . . . Thermal 8589 | . 288 400 . 398 746 411 . 94 573 159 . . . . 206 410 . 395 867 77 675 282 1107 1501 Explosive 5479 | . 244 . 535 197 . 685 . 678 122 239 . . . . . . . 408 446 . . . 1609 316 Electromagnetic 1648 | . . . . . 152 . . . . . . . . . 798 . . 615 83 . . . . . Impact 477 | . . . . . . . . . . . . . . . 86 . . 60 331 . . . . . Slashing 3260 | . . . . . . 1481 . 788 . . . . . . . . . . . . 714 . 78 199 Piercing 6 | . . . . . . . . . . . . . . . . . . . . . . . . 6 Highest Corruption 30 | . 2 . 1 1 1 3 . 2 8 9 11 11 2 2 9 23 23 1 7 . 3 3 30 23 Average Corruption 5 | . 1 . 1 1 1 1 . 2 4 8 10 11 2 2 3 15 23 1 5 . 1 2 14 9 Corruption Purged 1 | . . . . 1 . . . . . . . . . . . . . . . . . . . . Corruption Blocked . | . . . . . . . . . . . . . . . . . . . . . . . . . Effects 264 | . . . 5 8 3 9 . 9 27 45 12 24 6 . 3 14 2 1 39 . 2 2 40 13 Message Errors 67 | . . . 1 1 . 4 . 4 6 6 5 7 . . . 2 . . 15 . . 1 11 4 Matter Fused 57 | . . . 2 1 . . . 2 8 11 2 5 1 . 2 4 . 1 9 . . . 8 1 Heat Flow Errors 33 | . . . . 2 1 3 . 1 3 7 1 5 . . . 1 . . 3 . 1 . 3 2 Energy Discharges 26 | . . . . 1 . . . 1 1 2 2 . 4 . . 1 . . 4 . . . 7 3 Parts Rejected 5 | . . . . . . . . . . 1 . . 1 . . . . . 1 . . . 1 1 Data Loss (minor) 35 | . . . . 2 2 2 . 1 5 10 1 2 . . 1 2 . . 4 . 1 . 2 . Data Loss (major) 9 | . . . . 1 . . . . 1 1 . 1 . . . . 1 . 1 . . . 2 1 Misfires 9 | . . . . . . . . . 2 1 1 1 . . . 2 1 . . . . 1 . . Alerts 5 | . . . 1 . . . . . . 1 . . . . . . . . 1 . . . 2 . Misdirections 3 | . . . . . . . . . . . . . . . . . . . . . . . 3 . Weapon Failures 15 | . . . 1 . . . . . 1 5 . 3 . . . 2 . . 1 . . . 1 1 Overload Shots . | . . . . . . . . . . . . . . . . . . . . . . . . . Overflow Damage 1179 | . 54 . 15 . . 102 . . . . . . . . 12 . . 139 152 . . . 209 496 Projectiles 484 | . . . . . . 14 . . . . . . . . . . . 25 . . . . . 445 Explosions 445 | . 54 . 15 . . 61 . . . . . . . . 12 . . 94 . . . . 209 . Melee 250 | . . . . . . 27 . . . . . . . . . . . 20 152 . . . . 51 Knockbacks 32 | . . . . . . . . . . 30 . . . . 1 . . 1 . . . . . . Impact 2 | . . . . . . . . . . . . . . . 1 . . 1 . . . . . . Kinetic 25 | . . . . . . . . . . 25 . . . . . . . . . . . . . . Secondary 5 | . . . . . . . . . . 5 . . . . . . . . . . . . . . Self-Inflicted Damage 652 | . 40 . . . . 20 . . . . . . . . 130 . . 130 . 1 . . 277 54 Shots 19 | . 1 . . . . 1 . . . . . . . . 10 . . 3 . . . . 3 1 Rammed 2 | . . . . . . . . . . . . . . . . . . . . 2 . . . . Targets Rammed 2 | . . . . . . . . . . . . . . . . . . . . 2 . . . . Kicked . | . . . . . . . . . . . . . . . . . . . . . . . . . Crushed . | . . . . . . . . . . . . . . . . . . . . . . . . . Highest Temperature 485 | . 6 349 350 380 209 485 4 217 316 216 88 260 . 232 199 146 14 212 317 118 317 228 400 443 Average Temperature 101 | . 3 136 199 131 38 108 2 46 86 82 28 115 . 101 44 45 10 50 124 70 77 73 128 103 Received Heat Transfer 2733 | . 216 261 105 279 135 27 62 210 120 240 . 36 14 47 350 . 18 72 74 74 161 8 207 17 Effects 19 | . . 3 1 2 . . . . 3 . . 1 . . . . . . 5 . 3 . . 1 Shutdowns 2 | . . . . 1 . . . . . . . . . . . . . . . . . . . 1 Energy Bleed 5 | . . . . 1 . . . . 1 . . 1 . . . . . . 1 . 1 . . . Interference 10 | . . 2 . . . . . . 2 . . . . . . . . . 4 . 2 . . . Short Circuit 1 | . . . 1 . . . . . . . . . . . . . . . . . . . . . Damage (minor) 1 | . . 1 . . . . . . . . . . . . . . . . . . . . . . Siege Activations . | . . . . . . . . . . . . . . . . . . . . . . . . . Martial Activations . | . . . . . . . . . . . . . . . . . . . . . . . . . Shielding Activations . | . . . . . . . . . . . . . . . . . . . . . . . . . Robots Disrupted 2 | . . . . . . . . . . . . . . . . . . 2 . . . . . . Combat Hostiles 2 | . . . . . . . . . . . . . . . . . . 2 . . . . . . Robots Corrupted 2 | . . . . . . . . . . . . . . . 1 . . . 1 . . . . . Combat Hostiles 2 | . . . . . . . . . . . . . . . 1 . . . 1 . . . . . Parts Fried 11 | . . . . . . . . . . . . . . . 9 . . . . . . . 2 . Impact Corruptions 7 | . . . . . . . . . . . . . . . . . . 1 6 . . . . . Robots Melted 3 | . . . . . . 1 . . 1 . . . . . . . . 1 . . . . . . Combat Hostiles 3 | . . . . . . 1 . . 1 . . . . . . . . 1 . . . . . . Parts Melted 35 | . . 4 . 5 6 4 . . 1 . . . . . . 1 . 4 6 . . 2 1 1 Heat Transferred 12630 | . 325 1054 . 1425 2225 835 . 111 850 250 . . . . 222 444 . 407 1725 74 666 333 1240 444 Parts Sabotaged . | . . . . . . . . . . . . . . . . . . . . . . . . . Parts Stolen . | . . . . . . . . . . . . . . . . . . . . . . . . . Parts Stripped . | . . . . . . . . . . . . . . . . . . . . . . . . . Power Chain Reactions 1 | . . . . . . . . . . . . . . . 1 . . . . . . . . . Alert | -11 -10 -9 -8 -8 -8 -8 -7 -7 -6 -6 -6 -6 -6 -6 -5 -5 -5 -4 -4 -3 -3 -3 -3 -2 ------- Run | Yrd Mat Mat Mat Gar Sto Gar Fac Gar Fac Gar Fac Gar Fac Gar Fac Upp Upp Fac Gar Res Gar Res Qua Res Maximum Alert Level 5 | . 1 . 2 4 4 5 4 4 4 5 4 5 4 5 5 . . 4 5 5 5 4 5 4 Low Security (%) 8 | 100 66 100 54 . . . . . . . . . . . . . . . . . . . . . Level 1 3 | . 33 . 37 8 . . . . 11 . . . . . . . . . . . . . . . Level 2 8 | . . . 7 16 28 . . . 62 . . . . . . . . . . . . . 24 . Level 3 30 | . . . . 49 70 18 7 28 23 34 89 4 51 12 4 . . 88 73 29 . . 49 98 Level 4 27 | . . . . 25 . 27 92 71 2 40 10 22 48 10 51 . . 11 14 66 54 100 9 1 Level 5 18 | . . . . . . 54 . . . 24 . 72 . 76 . . . . 12 3 44 . 16 . High Security 2 | . . . . . . . . . . . . . . . 43 . . . . . . . . . Max Security . | . . . . . . . . . . . . . . . . . . . . . . . . . Peak Influence 2637 | 5 301 157 474 1366 1187 2440 1281 1463 1157 2046 1114 2052 1370 2576 2637 . . 1132 1698 1643 2103 1453 1766 1105 Initial 1352 | . 3 86 59 309 665 771 1281 720 767 807 1073 765 1077 959 1352 . . 781 765 954 1100 1182 803 967 Average 1132 | 2 112 93 195 907 765 1607 1188 1170 614 1377 1047 1679 1137 1997 1726 . . 899 1075 1200 1614 1225 947 1031 Influence Increases 26319 | 30 562 401 625 1097 860 1819 68 1123 1587 1559 211 1497 1073 1937 2807 65 . 839 1193 1137 1483 555 3316 475 Destroy 0b10 Robot/C 11200 | . 380 260 440 600 440 660 20 540 680 760 80 540 520 800 1040 40 . 360 460 400 680 140 1240 120 Destroy 0b10 Robot/NC 520 | 30 25 10 5 . 15 20 . 15 10 5 10 5 60 . 60 . . 35 . 60 15 10 115 15 Destroy Leader 1376 | . 70 92 90 20 114 30 . 40 140 30 30 30 148 60 146 10 . 30 40 56 20 22 126 32 Allied During Kill 6738 | . . . . 56 208 425 19 163 267 324 71 486 330 814 991 . . 204 263 516 306 172 1115 8 Successful Hack 334 | . 10 5 18 21 35 44 10 14 9 17 . 16 14 14 . . . . 14 . 14 28 51 . Disable Machine 945 | . 60 15 30 . 45 30 . . 240 15 . . . . 105 . . 30 . 45 15 45 240 30 Anti-Garrison Action 3150 | . . . . 250 . 500 . 300 . 350 . 400 . 200 300 . . 150 350 . 350 . . . Destroy Structure 990 | . 17 4 12 90 3 65 4 21 86 13 5 20 1 19 90 . . 30 66 30 8 108 148 150 Partial Spotted 15 | . . . 15 . . . . . . . . . . . . . . . . . . . . . Lose Combat Pursuer 705 | . . 15 15 60 . 45 15 30 45 45 15 . . 30 75 15 . . . 30 75 30 45 120 Miscellaneous 346 | . . . . . . . . . 110 . . . . . . . . . . . . . 236 . Influence Decreases 25277 | 25 362 465 290 207 1039 566 1479 689 1897 666 1163 539 1755 731 2776 1126 305 986 589 1368 847 1229 3025 1153 Entered New Map 13370 | . 2 119 82 167 701 416 1159 309 696 346 973 329 975 411 1224 966 295 460 329 744 367 921 626 753 Time Decay 4247 | 25 350 326 198 . 238 . 190 . 556 . 190 . 230 . 302 140 10 386 . 214 . 198 464 230 Lost Part 820 | . 10 20 10 40 20 10 10 10 10 10 . 10 . . 100 20 . 20 50 . 80 . 260 130 Lost Ally 5440 | . . . . . 80 140 120 370 360 310 . 200 550 320 700 . . 120 210 410 400 110 1000 40 Purge Threat 1400 | . . . . . . . . . 275 . . . . . 450 . . . . . . . 675 . Squads Dispatched 110 | . 4 2 3 . 4 . 1 . 13 . 2 . 8 . 25 . . 7 . 5 . 2 28 6 Investigation 5 | . 1 . . . 1 . . . 2 . . . 1 . . . . . . . . . . . Extermination 11 | . . . . . . . . . 4 . 1 . 1 . . . . . . 1 . 1 2 1 Reinforcement 48 | . 3 2 2 . 2 . . . 6 . . . 3 . 2 . . 1 . 2 . 1 22 2 Assault 31 | . . . . . . . . . . . . . . . 20 . . 5 . 1 . . 3 2 Garrison 15 | . . . 1 . 1 . 1 . 1 . 1 . 3 . 3 . . 1 . 1 . . 1 1 Intercept . | . . . . . . . . . . . . . . . . . . . . . . . . . Searches Triggered . | . . . . . . . . . . . . . . . . . . . . . . . . . Construction Impeded 6 | . . . . . . . . . 2 . . . . . . . . 1 . 1 . 1 . 1 Haulers Reinforced . | . . . . . . . . . . . . . . . . . . . . . . . . . Active Scanning Responses . | . . . . . . . . . . . . . . . . . . . . . . . . . Cargo Convoy Interrupts . | . . . . . . . . . . . . . . . . . . . . . . . . . Stealth | -11 -10 -9 -8 -8 -8 -8 -7 -7 -6 -6 -6 -6 -6 -6 -5 -5 -5 -4 -4 -3 -3 -3 -3 -2 --------- Run | Yrd Mat Mat Mat Gar Sto Gar Fac Gar Fac Gar Fac Gar Fac Gar Fac Upp Upp Fac Gar Res Gar Res Qua Res Distress Signals 28 | . 1 2 4 . 2 . 2 1 4 . . . 3 . 2 . . . . 4 . 1 1 1 Communications Jammed 773 | . . . . . . . . . . . . 3 88 . 18 . . 2 . 39 . 242 381 . Distress Signals 773 | . . . . . . . . . . . . 3 88 . 18 . . 2 . 39 . 242 381 . Times Spotted 821 | . 32 19 27 36 32 43 13 45 50 55 6 38 19 40 68 3 4 33 30 39 53 14 89 33 Peak Tracking Total 13 | . 6 5 10 5 7 6 6 13 6 7 2 6 6 8 8 2 4 5 5 9 9 5 13 13 Tactical Retreats 34 | . . 1 1 1 . 1 1 2 3 3 1 . . 2 5 1 . . . 1 4 1 3 3 Traps | -11 -10 -9 -8 -8 -8 -8 -7 -7 -6 -6 -6 -6 -6 -6 -5 -5 -5 -4 -4 -3 -3 -3 -3 -2 ------- Run | Yrd Mat Mat Mat Gar Sto Gar Fac Gar Fac Gar Fac Gar Fac Gar Fac Upp Upp Fac Gar Res Gar Res Qua Res Traps Triggered 85 | . 6 . 2 7 1 9 1 6 8 9 1 4 2 9 4 . . 1 6 . 4 2 3 . Indirectly 3 | . . . . . . . . . . . . . . . 3 . . . . . . . . . Trap Hack Attempts . | . . . . . . . . . . . . . . . . . . . . . . . . . Triggered . | . . . . . . . . . . . . . . . . . . . . . . . . . Disarmed . | . . . . . . . . . . . . . . . . . . . . . . . . . Reprogrammed . | . . . . . . . . . . . . . . . . . . . . . . . . . Reused . | . . . . . . . . . . . . . . . . . . . . . . . . . Traps Extracted . | . . . . . . . . . . . . . . . . . . . . . . . . . Installed . | . . . . . . . . . . . . . . . . . . . . . . . . . Triggered . | . . . . . . . . . . . . . . . . . . . . . . . . . Machines | -11 -10 -9 -8 -8 -8 -8 -7 -7 -6 -6 -6 -6 -6 -6 -5 -5 -5 -4 -4 -3 -3 -3 -3 -2 ---------- Run | Yrd Mat Mat Mat Gar Sto Gar Fac Gar Fac Gar Fac Gar Fac Gar Fac Upp Upp Fac Gar Res Gar Res Qua Res Machines Disabled 107 | . 4 1 2 4 3 8 . 5 16 8 . 7 . 4 9 . . 3 4 3 5 3 16 2 Max in Single Turn 3 | . 3 1 1 1 1 1 . 1 . 1 . 1 . 1 1 . . 1 1 . 1 . 2 2 Garrison Access 8 | . . . . . . . 1 . 1 . . . . . 3 . . 1 . . . . 1 1 Garrison Relay 38 | . . . . 3 . 6 . 6 . 5 . 6 . 4 . . . . 4 . 4 . . . Phase Generator 4 | . . . . . . 1 . . . 1 . 1 . . . . . . . . 1 . . . Machines Repaired . | . . . . . . . . . . . . . . . . . . . . . . . . . Machines Dismantled . | . . . . . . . . . . . . . . . . . . . . . . . . . Machines Sabotaged . | . . . . . . . . . . . . . . . . . . . . . . . . . Overloaded Fab Kills . | . . . . . . . . . . . . . . . . . . . . . . . . . Hacking | -11 -10 -9 -8 -8 -8 -8 -7 -7 -6 -6 -6 -6 -6 -6 -5 -5 -5 -4 -4 -3 -3 -3 -3 -2 --------- Run | Yrd Mat Mat Mat Gar Sto Gar Fac Gar Fac Gar Fac Gar Fac Gar Fac Upp Upp Fac Gar Res Gar Res Qua Res Machines Accessed 95 | . 5 4 6 5 9 4 4 3 12 2 4 2 3 2 2 . . 2 3 6 2 5 9 1 Terminals 70 | . 5 3 5 5 8 4 1 3 7 2 1 2 1 2 1 . . 1 3 4 2 4 6 . Fabricators 3 | . . . . . . . 1 . . . 1 . . . . . . . . 1 . . . . Repair Stations . | . . . . . . . . . . . . . . . . . . . . . . . . . Recycling Units . | . . . . . . . . . . . . . . . . . . . . . . . . . Scanalyzers 10 | . . 1 . . . . . . 3 . 1 . 1 . . . . . . . . 1 2 1 Garrison Access 12 | . . . 1 . 1 . 2 . 2 . 1 . 1 . 1 . . 1 . 1 . . 1 . Total Hacks 191 | . 14 14 14 11 22 7 8 6 21 3 5 3 5 2 3 . . 2 6 7 7 8 22 1 Successful 77 | . 7 5 6 2 8 4 6 1 7 2 3 1 3 1 2 . . 1 1 3 1 2 11 . Failed 112 | . 7 8 8 9 14 3 2 5 14 1 2 2 2 1 1 . . 1 5 4 6 5 11 1 Catastrophic 28 | . . 1 . 5 3 2 . 1 5 . 1 1 . 1 . . . 1 1 2 . 2 2 . Database Lockouts 2 | . . 1 . . . . . . . . . . . . . . . . . . . 1 . . Manual 88 | . 16 8 13 . 11 . 2 . 13 . 2 . 3 . 2 . . 1 . 3 . 4 10 . Terminals 152 | . 14 11 11 11 21 7 4 6 13 3 2 3 3 2 2 . . 1 6 4 7 5 16 . Fabricators 5 | . . . . . . . 2 . . . 1 . . . . . . . . 2 . . . . Repair Stations . | . . . . . . . . . . . . . . . . . . . . . . . . . Recycling Units . | . . . . . . . . . . . . . . . . . . . . . . . . . Scanalyzers 20 | . . 3 . . . . . . 6 . 1 . 1 . . . . . . . . 3 5 1 Garrison Access 14 | . . . 3 . 1 . 2 . 2 . 1 . 1 . 1 . . 1 . 1 . . 1 . Terminal Hacks 26 | . 2 1 . 2 3 4 1 1 1 2 . 1 . 1 . . . . 1 . 1 1 4 . Part Schematic 1 | . 1 . . . . . . . . . . . . . . . . . . . . . . . Robot Schematic 1 | . 1 . . . . . . . . . . . . . . . . . . . . . . . Open Door 6 | . . . . 1 2 1 . . . 1 . . . . . . . . . . . . 1 . Branch Access Points 5 | . . 1 . . . . 1 . 1 . . . . . . . . . . . . 1 1 . Emergency Access Points 7 | . . . . 1 . 1 . 1 . 1 . . . 1 . . . . 1 . 1 . . . Unreport Threat 2 | . . . . . . . . . . . . . . . . . . . . . . . 2 . Locate Traps 1 | . . . . . 1 . . . . . . . . . . . . . . . . . . . Patrol Navigation 1 | . . . . . . 1 . . . . . . . . . . . . . . . . . . Security Stations 2 | . . . . . . 1 . . . . . 1 . . . . . . . . . . . . Fabricator Hacks 5 | . . . . . . . 2 . . . 1 . . . . . . . . 2 . . . . Load Schematic 2 | . . . . . . . 1 . . . . . . . . . . . . 1 . . . . Build 3 | . . . . . . . 1 . . . 1 . . . . . . . . 1 . . . . Repair Station Hacks . | . . . . . . . . . . . . . . . . . . . . . . . . . Recycling Unit Hacks . | . . . . . . . . . . . . . . . . . . . . . . . . . Scanalyzer 11 | . . 2 . . . . . . 3 . 1 . 1 . . . . . . . . 1 3 . Retrieve Study 11 | . . 2 . . . . . . 3 . 1 . 1 . . . . . . . . 1 3 . Garrison Access Hacks 12 | . . . 1 . 1 . 2 . 2 . 1 . 1 . 1 . . 1 . 1 . . 1 . Unlock Access 8 | . . . 1 . 1 . 1 . 1 . 1 . 1 . . . . 1 . 1 . . . . Seal Access 4 | . . . . . . . 1 . 1 . . . . . 1 . . . . . . . 1 . Unauthorized Hacks 23 | . 5 2 5 . 4 . 1 . 1 . . . 1 . 1 . . . . . . . 3 . Terminals 23 | . 5 2 5 . 4 . 1 . 1 . . . 1 . 1 . . . . . . . 3 . Botnet 23 | . 5 2 5 . 4 . 1 . 1 . . . 1 . 1 . . . . . . . 3 . Fabricators . | . . . . . . . . . . . . . . . . . . . . . . . . . Repair Stations . | . . . . . . . . . . . . . . . . . . . . . . . . . Recycling Units . | . . . . . . . . . . . . . . . . . . . . . . . . . Scanalyzers . | . . . . . . . . . . . . . . . . . . . . . . . . . Garrison Access . | . . . . . . . . . . . . . . . . . . . . . . . . . Data Cores Recovered 4 | . . . . . . . . . . . . . 1 . . . . . . 1 . . 2 . Used 1 | . . . . . . . . . . . . . 1 . . . . . . . . . . . Hacking Detections 73 | . 4 3 5 5 9 3 2 2 11 . 2 2 1 1 1 . . 2 2 6 1 4 6 1 Full Trace Events 11 | . 1 . . 2 1 2 . 1 2 . . . . . . . . . 1 . 1 . . . Feedback Events . | . . . . . . . . . . . . . . . . . . . . . . . . . Feedback Blocked . | . . . . . . . . . . . . . . . . . . . . . . . . . Robot Schematics Acquired 2 | . 1 . . . . . . . . . . . . . . . . . . . . . 1 . Robots Built 4 | . . . . . . . 1 . . . 2 . . . . . . . . 1 . . . . Authchips 3 | . . . . . . . 1 . . . 1 . . . . . . . . 1 . . . . Time 197 | . . . . . . . 81 . . . 76 . . . . . . . . 40 . . . . Total Robot Build Rating 12 | . . . . . . . 1 . . . 10 . . . . . . . . 1 . . . . Part Schematics Acquired 6 | . 1 . . . . . . . . . . . . . . . . . . . . . 5 . Parts Built . | . . . . . . . . . . . . . . . . . . . . . . . . . Authchips . | . . . . . . . . . . . . . . . . . . . . . . . . . Time . | . . . . . . . . . . . . . . . . . . . . . . . . . Total Part Build Rating . | . . . . . . . . . . . . . . . . . . . . . . . . . Part Studies Acquired 10 | . . 2 . . . . . . 3 . . . 1 . . . . . . . . 1 3 . Parts Repaired . | . . . . . . . . . . . . . . . . . . . . . . . . . Time . | . . . . . . . . . . . . . . . . . . . . . . . . . Parts Recycled . | . . . . . . . . . . . . . . . . . . . . . . . . . Recycled Matter . | . . . . . . . . . . . . . . . . . . . . . . . . . Retrieved Matter . | . . . . . . . . . . . . . . . . . . . . . . . . . Retrieved Components . | . . . . . . . . . . . . . . . . . . . . . . . . . Parts Scanalyzed . | . . . . . . . . . . . . . . . . . . . . . . . . . Part Schematics Acquired . | . . . . . . . . . . . . . . . . . . . . . . . . . Parts Damaged . | . . . . . . . . . . . . . . . . . . . . . . . . . Bothacking | -11 -10 -9 -8 -8 -8 -8 -7 -7 -6 -6 -6 -6 -6 -6 -5 -5 -5 -4 -4 -3 -3 -3 -3 -2 ------------ Run | Yrd Mat Mat Mat Gar Sto Gar Fac Gar Fac Gar Fac Gar Fac Gar Fac Upp Upp Fac Gar Res Gar Res Qua Res Used RIF Installer 9 | . . . . 2 . 1 . 1 . 1 . 1 . 1 . . . . 1 . 1 . . . Hotswap 1 | . . . . . . . . . . . . . . . . . . . 1 . . . . . Command Fork 1 | . . . . . . . . 1 . . . . . . . . . . . . . . . . Signal Jammer 1 | . . . . . . . . . . . . 1 . . . . . . . . . . . . Patrol Navigation 1 | . . . . 1 . . . . . . . . . . . . . . . . . . . . Structural Interface 1 | . . . . . . 1 . . . . . . . . . . . . . . . . . . Program Shield 1 | . . . . . . . . . . . . . . 1 . . . . . . . . . . Autoassimilate 2 | . . . . . . . . . . 1 . . . . . . . . . . 1 . . . Crosswire 1 | . . . . . . 1 . . . . . . . . . . . . . . . . . . Robots Hacked 300 | . . . . 2 4 12 11 19 23 20 2 16 14 15 28 . 3 10 23 17 22 9 47 3 Non-combat 34 | . . . . . . . 1 . 9 . 1 2 4 . 4 . . . . 3 . 3 7 . Combat 266 | . . . . 2 4 12 10 19 14 20 1 14 10 15 24 . 3 10 23 14 22 6 40 3 Autoassimilated 68 | . . . . . . . . . . . . 2 6 2 8 . . 3 11 4 13 1 17 1 Robot Hacks Applied 253 | . . . . 2 4 13 12 19 27 20 3 14 10 13 27 . 3 8 12 14 9 8 33 2 parse_system 7 | . . . . . . 1 . . . . . . . . 1 . . 1 1 1 . . 2 . find_chute 1 | . . . . . . . . . 1 . . . . . . . . . . . . . . . ignore_repairs 1 | . . . . . . . . . 1 . . . . . . . . . . . . . . . find_fabricator 1 | . . . . . . . . . 1 . . . . . . . . . . . . . . . drop_inventory 7 | . . . . . . . . . 2 . . . 1 . 1 . . . . 1 . 1 1 . ignore_parts 2 | . . . . . . . 1 . 1 . . . . . . . . . . . . . . . purge_threat 9 | . . . . . . . . . 2 . . . . . 4 . . . . . . . 3 . block_reporting 3 | . . . . . . . . . 1 . . . . . . . . . . 1 . . 1 . map_route 1 | . . . . . . . . . . . . . 1 . . . . . . . . . . . emergency_deploy 3 | . . . . . . . . . . . . . . . 2 . . . 1 . . . . . find_garrison 10 | . . . . . . . 1 . 1 . 1 . 2 . 1 . . 2 . 1 . . . 1 reboot_system 12 | . . . . . 1 . . 4 1 . . . . 2 1 . . 1 . . . . 2 . overwrite_iff 37 | . . . . . . 5 . 7 2 4 . 3 . 2 6 . . 3 1 . 1 . 3 . streamctrl_low 1 | . . . . . . . . . . . . . . . . . . . . . . . 1 . formatsys_low 13 | . . . . . . . . . 3 . 1 1 2 . 2 . . . . 1 . 1 2 . formatsys_high 143 | . . . . 2 3 7 10 8 11 16 1 9 4 9 8 . 3 1 9 9 8 6 18 1 formatsys_deep 2 | . . . . . . . . . . . . 1 . . 1 . . . . . . . . . Relay Couplers Released 151 | . . . . 10 . 25 . 24 . 16 . 22 . 15 2 . . 1 18 . 16 . 1 1 Machine Destruction 151 | . . . . 10 . 25 . 24 . 16 . 22 . 15 2 . . 1 18 . 16 . 1 1 Attached 90 | . . . . 1 2 7 3 6 6 9 1 9 4 2 10 . . 1 9 4 7 . 8 1 Crosswired 47 | . . . . . . 8 . 8 . 5 . 7 . 4 . . . 1 5 . 9 . . . Fabnet Peak Effective % . | . . . . . . . . . . . . . . . . . . . . . . . . . Robots Rewired 56 | . . . . 2 . 3 . 3 . 2 . 18 . 12 . . . 2 10 . 3 . 1 . Allies Hacked 2 | . . . . . . 1 . . . . . . . . . . . . . . . 1 . . Hacks Repelled . | . . . . . . . . . . . . . . . . . . . . . . . . . Allies | -11 -10 -9 -8 -8 -8 -8 -7 -7 -6 -6 -6 -6 -6 -6 -5 -5 -5 -4 -4 -3 -3 -3 -3 -2 -------- Run | Yrd Mat Mat Mat Gar Sto Gar Fac Gar Fac Gar Fac Gar Fac Gar Fac Upp Upp Fac Gar Res Gar Res Qua Res Total Allies 395 | . . . . 4 13 17 11 20 23 24 4 38 22 29 29 . 4 11 31 17 35 8 53 2 Largest Group 38 | . . . . 3 10 16 22 12 8 8 9 33 38 23 23 . 4 7 20 24 13 17 19 1 Highest-Rated Group 1100 | . . . . 61 173 299 467 216 245 258 308 1029 1003 867 865 . 134 277 797 1100 638 776 837 183 Highest-Rated Ally 219 | . . . . 25 29 31 32 40 43 46 43 46 90 95 95 . 47 64 64 64 89 76 219 183 Total Orders 10 | . . . . . . . . . 2 2 . 1 1 1 1 . . . . . . 2 . . STAY 2 | . . . . . . . . . . . . 1 . . 1 . . . . . . . . . AID 8 | . . . . . . . . . 2 2 . . 1 1 . . . . . . . 2 . . Ally Attacks 2176 | . . . . 33 101 100 13 96 137 84 5 87 174 209 234 . . 127 65 167 110 53 372 9 Total Damage 56341 | . . . . 484 1278 1189 238 1820 3140 2145 189 2228 3939 4852 7813 . . 2859 1836 4320 3937 1495 12146 433 Kills 430 | . . . . 5 15 20 1 17 24 22 . 16 38 34 58 . . 19 11 34 26 9 79 2 Allies Corrupted 19 | . . . . . 1 . . . 1 . . 1 . 3 . . . . 2 4 1 1 5 . Allies Melted 7 | . . . . . . . . . . 1 . . . 1 1 . . . 1 2 1 . . . X0-1V1 Amusement Gains 305 | . 12 . 30 . 35 10 . 20 9 25 . . . . . . . 40 40 5 . . 37 42 Average Entertainment 77 | . 11 6 22 33 43 67 71 85 90 89 100 100 100 100 100 70 29 39 80 95 100 100 84 71 Good Acts 128 | . . 3 1 4 4 7 1 7 18 10 . 11 3 7 9 . . . 8 2 15 . 14 4 Bad Acts 73 | . 1 1 4 8 4 3 . 4 1 1 . 2 . 6 3 2 1 2 9 2 9 6 3 1 Intel | -11 -10 -9 -8 -8 -8 -8 -7 -7 -6 -6 -6 -6 -6 -6 -5 -5 -5 -4 -4 -3 -3 -3 -3 -2 ------- Run | Yrd Mat Mat Mat Gar Sto Gar Fac Gar Fac Gar Fac Gar Fac Gar Fac Upp Upp Fac Gar Res Gar Res Qua Res Active Infowar (turns) 11039 | 19 333 334 . . . . . . . . . 1179 496 1054 1183 290 33 913 1343 441 1363 417 1163 478 Optics 10346 | . . . . . . . . . . . . 1179 496 1054 1183 290 33 913 1336 441 1363 417 1163 478 Seismic 686 | 19 333 334 . . . . . . . . . . . . . . . . . . . . . . Cloaking 130 | . . . . . . . . . . . . . . . . . . . . . . . . 130 Jamming 591 | . . . . . . . . . . . . . . . . . . 453 138 . . . . . Robot Analysis Total . | . . . . . . . . . . . . . . . . . . . . . . . . . Derelict Logs Recovered . | . . . . . . . . . . . . . . . . . . . . . . . . . Drone Launches . | . . . . . . . . . . . . . . . . . . . . . . . . . Drone Recoveries . | . . . . . . . . . . . . . . . . . . . . . . . . . Exploration | -11 -10 -9 -8 -8 -8 -8 -7 -7 -6 -6 -6 -6 -6 -6 -5 -5 -5 -4 -4 -3 -3 -3 -3 -2 ------------- Run | Yrd Mat Mat Mat Gar Sto Gar Fac Gar Fac Gar Fac Gar Fac Gar Fac Upp Upp Fac Gar Res Gar Res Qua Res Turns Passed 20486 | 108 930 737 417 1053 512 1246 388 1185 1621 1289 384 1394 496 1054 1183 290 33 913 1372 441 1363 417 1163 497 Spaces Moved 13441 | 53 724 499 281 684 311 832 255 825 1328 918 258 876 392 660 815 196 19 385 687 271 832 296 779 265 Core 48 | 8 1 . . . . . . . . . . . . . . . . 4 . . . . . 35 Treads . | . . . . . . . . . . . . . . . . . . . . . . . . . Legs 493 | . . . . . . . . . . . . . . . . . . 200 293 . . . . . Wheels 12900 | 45 723 499 281 684 311 832 255 825 1328 918 258 876 392 660 815 196 19 181 394 271 832 296 779 230 Hover . | . . . . . . . . . . . . . . . . . . . . . . . . . Flight . | . . . . . . . . . . . . . . . . . . . . . . . . . Fastest Speed 50 | 50 80 95 95 95 95 95 101 97 98 98 108 108 105 105 95 105 150 150 105 113 113 113 88 50 Average Speed 110 | 93 99 95 95 95 100 101 101 101 104 99 118 108 105 110 106 116 150 209 146 116 114 113 115 124 Slowest Speed 2200 | 200 200 105 95 95 110 105 101 105 105 125 120 108 108 120 135 150 150 2200 190 120 180 113 190 170 Overloaded Moves . | . . . . . . . . . . . . . . . . . . . . . . . . . Propulsion Burnouts . | . . . . . . . . . . . . . . . . . . . . . . . . . Robots Hopped 2 | . . . . . . . . . . . . . . . . . . . . . 2 . . . Potential Cave-ins 19 | . . . . . . . . . 3 . . . . . . . . . . . . . . 16 Cave-ins Triggered 2 | . . . . . . . . . 1 . . . . . . . . . . . . . . 1 Exploration Rate (%) 54 | 3 98 44 44 96 62 92 7 92 50 95 9 99 24 97 37 50 14 9 97 13 98 18 95 11 Regions Visited 24 Branch Regions 4 Pre-discovered Areas . | . . . . . . . . . . . . . . . . . . . . . . . . . Known Exits Taken 10 | . . . 1 . 1 . 1 . 1 . 1 . 1 . . . . 1 . 1 . 1 1 . Unknown Exits Taken 6 | 1 1 1 . . . . . . . . . . . . 1 1 1 . . . . . . . Scrap Searched . | . . . . . . . . . . . . . . . . . . . . . . . . . Spaces Dug 85 | . . 4 2 5 1 5 4 1 20 1 . . . 5 6 . . . . 2 . 5 2 22 Terrain Destroyed 441 | . 18 4 8 5 2 49 4 14 42 18 5 4 1 12 10 5 . 13 53 2 2 5 98 67 Melee 34 | . . 4 2 5 1 5 . 1 1 1 . . . 5 6 . . . . . . . 2 1 Projectile 108 | . . . . . 1 . 4 . 26 1 5 4 1 6 2 5 . 5 . 2 2 5 1 38 AOE 296 | . 18 . 6 . . 44 . 13 15 16 . . . . . . . 8 53 . . . 95 28 Terrain Rammed . | . . . . . . . . . . . . . . . . . . . . . . . . . Walls Destroyed . | . . . . . . . . . . . . . . . . . . . . . . . . . Machines Disabled . | . . . . . . . . . . . . . . . . . . . . . . . . . Actions | -11 -10 -9 -8 -8 -8 -8 -7 -7 -6 -6 -6 -6 -6 -6 -5 -5 -5 -4 -4 -3 -3 -3 -3 -2 --------- Run | Yrd Mat Mat Mat Gar Sto Gar Fac Gar Fac Gar Fac Gar Fac Gar Fac Upp Upp Fac Gar Res Gar Res Qua Res Total 17181 | 81 842 664 372 942 438 1085 371 1051 1484 1156 312 1210 454 902 993 218 22 456 972 372 1075 360 972 377 Wait 993 | . 18 75 16 59 45 33 76 40 23 24 30 162 34 71 20 . . . 99 45 47 28 34 14 Move 13418 | 52 723 498 281 683 311 831 254 824 1327 917 258 875 392 659 814 195 18 385 686 271 827 295 778 264 Hop 2 | . . . . . . . . . . . . . . . . . . . . . 2 . . . Pick Up 259 | 5 19 9 7 18 10 18 5 17 17 22 3 16 1 12 7 . . 9 13 4 16 4 20 7 Fast Attach 132 | 9 6 6 2 2 5 5 1 3 6 9 1 2 1 2 9 . . 10 20 1 10 1 10 11 Attach 116 | . 1 3 3 4 1 3 3 4 5 4 2 3 1 3 12 1 . 7 6 8 9 . 19 14 Detach 33 | . . . 1 . 2 1 . 1 . 1 . 1 . . 2 . . 5 4 2 4 . 4 5 Swap 256 | . 12 11 8 32 14 21 4 24 20 24 3 14 7 4 27 1 1 1 9 4 6 1 6 2 Drop 202 | 2 11 9 7 14 14 17 1 8 10 28 . 11 . 6 6 . . 4 23 3 14 2 8 4 Fire 1264 | 13 52 47 44 68 29 53 20 65 72 85 14 103 17 81 87 21 3 34 83 29 90 21 89 44 Melee 198 | . . 6 3 30 6 52 . 22 1 9 . 5 . 7 7 . . 1 9 . 25 . 4 11 Ram 2 | . . . . . . . . . . . . . . . . . . . . 2 . . . . Kick . | . . . . . . . . . . . . . . . . . . . . . . . . . Crush . | . . . . . . . . . . . . . . . . . . . . . . . . . Escape Stasis 281 | . . . . 32 . 48 6 40 1 31 . 16 . 56 . . . . 18 . 24 8 . 1 Rewire 25 | . . . . . 1 3 1 3 2 2 1 2 1 1 2 . . . 2 3 1 . . . Trap . | . . . . . . . . . . . . . . . . . . . . . . . . . Miscellaneous . | . . . . . . . . . . . . . . . . . . . . . . . . . Route ------- -11/Scrapyard -10/Materials (discovered 5 exits: *Mat x3 / [*Min] / [*Sub]) -9/Materials (discovered 3 exits: *Mat x2 / Min) -8/Materials -8/Garrison (discovered 3 exits: *Sto x3) -8/Storage -8/Garrison (discovered 3 exits: *Fac x3) -7/Factory (discovered 3 exits: Low x2 / Gar) -7/Garrison (discovered 3 exits: *Fac x3) -6/Factory (discovered 5 exits: Fac x2 / *Low x2 / Gar) -6/Garrison (discovered 3 exits: *Fac x3) -6/Factory -6/Garrison (discovered 4 exits: *Fac x3 / *Fac) -6/Factory (discovered 4 exits: *Fac x2 / *Low / Gar) -6/Garrison (discovered 3 exits: *Fac x3) -5/Factory (discovered 2 exits: *Fac / [*Upp]) -5/Upper Caves -5/Upper Caves -4/Factory -4/Garrison (discovered 3 exits: *Res x3) -3/Research -3/Garrison (discovered 4 exits: *Res x4) -3/Research (discovered 2 exits: *Qua x2) -3/Quarantine -2/Research (discovered 2 exits: Acc / [*Tes]) History --------- Turn | Location | Event 51 | -11/Scrapyard | Discovered new exit (range 13) 109 | -11/Scrapyard | Entered Materials 161 | -10/Materials | Discovered new exit (range 14) 308 | -10/Materials | Discovered new exit (range 14) 318 | -10/Materials | Build established: Mutant 463 | -10/Materials | Discovered new exit (range 16) 728 | -10/Materials | Discovered new exit (range 12) 749 | -10/Materials | Destroyed 7 combat bots 773 | -10/Materials | Discovered new exit (range 13) 950 | -10/Materials | Prayed at D.C.S.S. Altar Unit 1039 | -10/Materials | Entered another Materials area 1039 | -9/Materials | Evolved 2 slots: Propulsion x1, Utility x1 1052 | -9/Materials | Central database locked down 1278 | -9/Materials | X0-1V1 activates XOMVISION 1430 | -9/Materials | Discovered new exit (range 16) 1617 | -9/Materials | Matter capacity permanently improved by X0-1V1 (+200; -100 max core) 1663 | -9/Materials | X0-1V1 activates XOMVISION 1754 | -9/Materials | Discovered new exit (range 14) 1763 | -9/Materials | Identified exit to Mines 1776 | -9/Materials | Entered another Materials area 1776 | -8/Materials | Evolved 2 slots: Utility x1, Weapon x1 1806 | -8/Materials | X0-1V1 vaporized surrounding terrain (radius 15) 2060 | -8/Materials | Build established: Tank 2151 | -8/Materials | Garrison activated, responded to threat 2193 | -8/Materials | Identified exit to Garrison 2193 | -8/Materials | Entered Garrison 2201 | -8/Garrison | Destroyed 11 combat bots 2245 | -8/Garrison | Triggered checkpoint 2283 | -8/Garrison | Garrison Relay disabled 2323 | -8/Garrison | Garrison Relay disabled 2514 | -8/Garrison | X0-1V1 sent you into danger 2589 | -8/Garrison | Triggered checkpoint 2638 | -8/Garrison | Discovered new exit (range 10) 2681 | -8/Garrison | Installed Relay Interface Framework 2706 | -8/Garrison | Triggered checkpoint 2777 | -8/Garrison | X0-1V1 caused items to flee you 2783 | -8/Garrison | Discovered new exit (range 13) 2857 | -8/Garrison | Triggered checkpoint 2877 | -8/Garrison | Expanded RIF knowledge: Patrol Navigation 2914 | -8/Garrison | X0-1V1 rewrote Trooper 3b IFF filter 2935 | -8/Garrison | Items stopped fleeing you 2966 | -8/Garrison | Triggered checkpoint 2970 | -8/Garrison | X0-1V1 vaporized surrounding terrain (radius 20) 2997 | -8/Garrison | Triggered checkpoint 3061 | -8/Garrison | Triggered checkpoint 3098 | -8/Garrison | Garrison Relay disabled 3160 | -8/Garrison | Lost 3 parts (1p2w) 3178 | -8/Garrison | Discovered new exit (range 3) 3180 | -8/Garrison | Heat dissipation permanently improved by X0-1V1 (+15; -75 max core) 3246 | -8/Garrison | Entered Storage 3246 | -8/Storage | Accompanied by 2 allies 3364 | -8/Storage | Build established: Bothacker-Mutant 3591 | -8/Storage | Assisted by bots powering up and referring to "LRC-V3" 3696 | -8/Storage | Lost 3 allies 3698 | -8/Storage | Core integrity permanently improved by X0-1V1 (+200) 3739 | -8/Storage | Garrison activated, responded to threat 3758 | -8/Storage | Identified exit to Garrison 3758 | -8/Storage | Entered Garrison 3758 | -8/Garrison | Accompanied by 8 allies 3828 | -8/Garrison | Triggered checkpoint 3840 | -8/Garrison | Identified exit to Factory 3840 | -8/Garrison | X0-1V1 revealed exit location to -7/Factory 3842 | -8/Garrison | Rescued a captive Derelict 3844 | -8/Garrison | Rescued a captive Derelict 3879 | -8/Garrison | Garrison Relay disabled 3984 | -8/Garrison | Discovered exit to Factory (range 13) 3984 | -8/Garrison | X0-1V1 sent you into danger 4026 | -8/Garrison | Destroyed 8 combat bots 4079 | -8/Garrison | Triggered checkpoint 4150 | -8/Garrison | Garrison Relay disabled 4187 | -8/Garrison | Learned Factory security intel 4302 | -8/Garrison | Triggered checkpoint 4313 | -8/Garrison | Triggered checkpoint 4407 | -8/Garrison | Garrison Relay disabled 4485 | -8/Garrison | Expanded RIF knowledge: Crosswire 4514 | -8/Garrison | X0-1V1 destroyed Phase Generator 4514 | -8/Garrison | Phase Generator disabled 4548 | -8/Garrison | Discovered exit to Factory (range 10) 4574 | -8/Garrison | Triggered checkpoint 4600 | -8/Garrison | Triggered checkpoint 4603 | -8/Garrison | Garrison Relay disabled 4798 | -8/Garrison | Triggered checkpoint 4800 | -8/Garrison | Core integrity fell below 50% 4835 | -8/Garrison | Expanded RIF knowledge: Structural Interface 4918 | -8/Garrison | Garrison Relay disabled 4929 | -8/Garrison | Triggered checkpoint 4968 | -8/Garrison | Garrison Relay disabled 5004 | -8/Garrison | Entered Factory 5004 | -7/Factory | Accompanied by 13 allies 5004 | -7/Factory | Evolved 2 slots: Propulsion x1, Utility x1 5130 | -7/Factory | Fabricated O-16 Technician? 5146 | -7/Factory | Identified exit to Lower Caves 5159 | -7/Factory | X0-1V1 released a cloud of subatomizers 5216 | -7/Factory | Build established: Botlord-Mutant 5321 | -7/Factory | Identified exit to Garrison 5341 | -7/Factory | Garrison activated, responded to threat 5392 | -7/Factory | Entered Garrison 5392 | -7/Garrison | Accompanied by 11 allies 5417 | -7/Garrison | Lost 4 allies 5431 | -7/Garrison | Triggered checkpoint 5466 | -7/Garrison | Garrison Relay disabled 5475 | -7/Garrison | Garrison Relay disabled 5501 | -7/Garrison | Triggered checkpoint 5542 | -7/Garrison | Lost 4 allies 5682 | -7/Garrison | Triggered checkpoint 5690 | -7/Garrison | Triggered checkpoint 5739 | -7/Garrison | Lost 7 allies 5787 | -7/Garrison | Destroyed 10 combat bots 5829 | -7/Garrison | Lost 4 allies 5848 | -7/Garrison | Discovered new exit (range 14) 5888 | -7/Garrison | Triggered checkpoint 5955 | -7/Garrison | Garrison Relay disabled 5976 | -7/Garrison | Triggered checkpoint 6065 | -7/Garrison | Triggered checkpoint 6074 | -7/Garrison | X0-1V1 mutated your Utility slot to Propulsion slot 6090 | -7/Garrison | Identified exit to Factory 6090 | -7/Garrison | X0-1V1 revealed exit location to -6/Factory 6178 | -7/Garrison | Triggered checkpoint 6218 | -7/Garrison | Expanded RIF knowledge: Command Fork 6227 | -7/Garrison | Garrison Relay disabled 6268 | -7/Garrison | Discovered exit to Factory (range 10) 6306 | -7/Garrison | Garrison Relay disabled 6340 | -7/Garrison | Triggered checkpoint 6389 | -7/Garrison | X0-1V1 caused items to flee you 6523 | -7/Garrison | Items stopped fleeing you 6525 | -7/Garrison | Lost 4 allies 6577 | -7/Garrison | Entered Factory 6577 | -6/Factory | Accompanied by 6 allies 6577 | -6/Factory | Evolved 2 slots: Utility x2 6636 | -6/Factory | Build established: Botlord-Gunner 6847 | -6/Factory | Discovered new exit (range 5) 6961 | -6/Factory | Build established: Botlord-Mutant 7369 | -6/Factory | Lost 3 allies 7551 | -6/Factory | Weapon slot count temporarily expanded by X0-1V1 (+3) 7553 | -6/Factory | Identified exit to Lower Caves 7668 | -6/Factory | Build established: Bothacker-Gunner 7694 | -6/Factory | X0-1V1 sent you to a vault 7894 | -6/Factory | Identified exit to Factory 7894 | -6/Factory | X0-1V1 revealed exit location to -5/Factory 7936 | -6/Factory | X0-1V1 foreshadows a heat wave 8019 | -6/Factory | X0-1V1 activates XOMVISION 8065 | -6/Factory | Weapon slot count reverted to normal (-3) 8068 | -6/Factory | Crushed by falling debris 8093 | -6/Factory | Ambient heat levels rising (+10) 8142 | -6/Factory | X0-1V1 revealed exit location to -5/Factory 8146 | -6/Factory | X0-1V1 added 0b10 threat records associated with you (minor) 8147 | -6/Factory | Garrison activated, responded to threat 8198 | -6/Factory | Identified exit to Garrison 8198 | -6/Factory | Entered Garrison 8198 | -6/Garrison | Accompanied by 2 allies 8205 | -6/Garrison | Build established: Bothacker-Tank 8225 | -6/Garrison | Rescued a captive Derelict 8236 | -6/Garrison | Triggered checkpoint 8270 | -6/Garrison | Garrison Relay disabled 8380 | -6/Garrison | Triggered checkpoint 8419 | -6/Garrison | Lost 5 allies 8438 | -6/Garrison | Discovered new exit (range 7) 8467 | -6/Garrison | Triggered checkpoint 8498 | -6/Garrison | Garrison Relay disabled 8500 | -6/Garrison | Identified exit to Factory 8500 | -6/Garrison | X0-1V1 revealed exit location to -6/Factory 8571 | -6/Garrison | Expanded RIF knowledge: Autoassimilate 8625 | -6/Garrison | Triggered checkpoint 8688 | -6/Garrison | Triggered checkpoint 8714 | -6/Garrison | Spotted B-75 Beast 8747 | -6/Garrison | X0-1V1 destroyed Phase Generator 8747 | -6/Garrison | Phase Generator disabled 8782 | -6/Garrison | Triggered checkpoint 8798 | -6/Garrison | Triggered checkpoint 8820 | -6/Garrison | Destroyed 7 combat bots 8829 | -6/Garrison | Garrison Relay disabled 8842 | -6/Garrison | Garrison Relay disabled 8936 | -6/Garrison | X0-1V1 whisked you away to safety 9212 | -6/Garrison | Discovered exit to Factory (range 3) 9218 | -6/Garrison | Build established: Botlord-Gunner 9256 | -6/Garrison | Found Relay Coupler [Proto] 9258 | -6/Garrison | Found Relay Coupler [Proto] 9261 | -6/Garrison | Found Relay Coupler [Proto] 9263 | -6/Garrison | Found Relay Coupler [Proto] 9292 | -6/Garrison | Triggered checkpoint 9327 | -6/Garrison | Garrison Relay disabled 9487 | -6/Garrison | Entered Factory 9487 | -6/Factory | Accompanied by 5 allies 9584 | -6/Factory | System corruption reached 10% 9691 | -6/Factory | Fabricated H-66 Slayer? 9811 | -6/Factory | Garrison activated, responded to threat 9860 | -6/Factory | Identified exit to Garrison 9871 | -6/Factory | Entered Garrison 9871 | -6/Garrison | Accompanied by 9 allies 9896 | -6/Garrison | Garrison Relay disabled 9935 | -6/Garrison | Triggered checkpoint 10020 | -6/Garrison | Garrison Relay disabled 10064 | -6/Garrison | Triggered checkpoint 10072 | -6/Garrison | Triggered checkpoint 10119 | -6/Garrison | Discovered exit to Factory (range 11) 10131 | -6/Garrison | Triggered checkpoint 10169 | -6/Garrison | Garrison Relay disabled 10184 | -6/Garrison | Lost 4 allies 10210 | -6/Garrison | Learned Factory security intel 10378 | -6/Garrison | Triggered checkpoint 10451 | -6/Garrison | X0-1V1 destroyed Phase Generator 10451 | -6/Garrison | Phase Generator disabled 10453 | -6/Garrison | Triggered checkpoint 10499 | -6/Garrison | Garrison Relay disabled 10609 | -6/Garrison | Triggered checkpoint 10628 | -6/Garrison | X0-1V1 caused items to flee you 10649 | -6/Garrison | Triggered checkpoint 10660 | -6/Garrison | Core integrity restored by X0-1V1 (+148) 10662 | -6/Garrison | Identified exit to Factory 10662 | -6/Garrison | X0-1V1 revealed exit location to -6/Factory 10663 | -6/Garrison | Expanded RIF knowledge: Signal Jamming 10685 | -6/Garrison | Garrison Relay disabled 10701 | -6/Garrison | Discovered exit to Factory (range 9) 10809 | -6/Garrison | Items stopped fleeing you 10830 | -6/Garrison | Found Gamma Bomb Array 10844 | -6/Garrison | Lost 3 allies 10852 | -6/Garrison | Build established: Commander-Skirmisher 10967 | -6/Garrison | Discovered exit to Factory (range 11) 10969 | -6/Garrison | Triggered checkpoint 10971 | -6/Garrison | Assimilated Heavy ARC 5a with formatsys_deep 11039 | -6/Garrison | Triggered checkpoint 11128 | -6/Garrison | Garrison Relay disabled 11265 | -6/Garrison | Entered Factory 11265 | -6/Factory | Accompanied by 26 allies 11363 | -6/Factory | X0-1V1 revealed exit location to -5/Factory 11429 | -6/Factory | Spotted B-75 Beast 11479 | -6/Factory | X0-1V1 sent you to a vault 11503 | -6/Factory | Garrison activated, responded to threat 11567 | -6/Factory | X0-1V1 activates XOMVISION 11604 | -6/Factory | Lost 5 allies 11641 | -6/Factory | Discovered exit to Lower Caves (range 21) 11664 | -6/Factory | Discovered exit to Factory (range 13) 11708 | -6/Factory | Lost 8 allies 11735 | -6/Factory | Identified exit to Garrison 11761 | -6/Factory | Entered Garrison 11761 | -6/Garrison | Accompanied by 13 allies 11764 | -6/Garrison | X0-1V1 revealed exit location to -5/Factory 11819 | -6/Garrison | Triggered checkpoint 11836 | -6/Garrison | Garrison Relay disabled 11861 | -6/Garrison | Build established: Botlord-Tank 11935 | -6/Garrison | Triggered checkpoint 11937 | -6/Garrison | Triggered checkpoint 11947 | -6/Garrison | Triggered checkpoint 11986 | -6/Garrison | Expanded RIF knowledge: Program Shield 11997 | -6/Garrison | Triggered checkpoint 12039 | -6/Garrison | Lost 7 allies 12109 | -6/Garrison | Triggered checkpoint 12170 | -6/Garrison | Garrison Relay disabled 12200 | -6/Garrison | Discovered exit to Factory (range 21) 12325 | -6/Garrison | Lost 9 allies 12373 | -6/Garrison | X0-1V1 vaporized surrounding terrain (radius 22) 12380 | -6/Garrison | X0-1V1 mutated your Propulsion slot to Power slot 12456 | -6/Garrison | Discovered exit to Factory (range 11) 12458 | -6/Garrison | Triggered checkpoint 12487 | -6/Garrison | Garrison Relay disabled 12629 | -6/Garrison | X0-1V1 activates XOMVISION 12638 | -6/Garrison | Found embedded Infiltrators 12645 | -6/Garrison | Triggered checkpoint 12672 | -6/Garrison | Garrison Relay disabled 12815 | -6/Garrison | Entered Factory 12815 | -5/Factory | Accompanied by 21 allies 12815 | -5/Factory | Evolved 2 slots: Propulsion x1, Utility x1 13014 | -5/Factory | X0-1V1 sent you to a vault 13025 | -5/Factory | Found Prototype Protection 13029 | -5/Factory | Found Prototype Device 13036 | -5/Factory | Identified System Purifier 13115 | -5/Factory | First assault squad dispatched 13175 | -5/Factory | Garrison activated, responded to threat 13279 | -5/Factory | Lost 4 allies 13432 | -5/Factory | Spotted B-75 Beast 13447 | -5/Factory | Assimilated Beast 6a with formatsys_high 13459 | -5/Factory | Garrison activated, responded to threat 13481 | -5/Factory | High security lockdown imminent 13502 | -5/Factory | Build established: Botlord-Mutant 13514 | -5/Factory | Discovered new exit (range 21) 13561 | -5/Factory | High security lockdown engaged 13740 | -5/Factory | Lost 4 allies 13824 | -5/Factory | X0-1V1 activates XOMVISION 13837 | -5/Factory | Assimilated Heavy ARC 6a with formatsys_deep 13907 | -5/Factory | Lost 11 allies 13968 | -5/Factory | Lost 5 parts (1p2n1u1w) 13975 | -5/Factory | Discovered new exit (range 10) 13998 | -5/Factory | Entered Upper Caves 14090 | -5/Upper Caves | X0-1V1 caused items to flee you 14146 | -5/Upper Caves | System corruption reached 10% 14169 | -5/Upper Caves | Spotted B-75 Beast 14193 | -5/Upper Caves | Identified Centrium Heavy Armor Plating 14279 | -5/Upper Caves | Discovered new exit (range 7) 14288 | -5/Upper Caves | Entered another Upper Caves area 14296 | -5/Upper Caves | X0-1V1 vaporized surrounding terrain (radius 21) 14296 | -5/Upper Caves | Discovered new exit (range 15) 14321 | -5/Upper Caves | Entered Factory 14321 | -4/Factory | Accompanied by 4 allies 14321 | -4/Factory | Evolved 2 slots: Utility x1, Weapon x1 14575 | -4/Factory | Build established: Botlord-Tank 14821 | -4/Factory | First assault squad dispatched 15083 | -4/Factory | Found Quantum Capacitor 15227 | -4/Factory | Garrison activated, responded to threat 15234 | -4/Factory | Identified exit to Garrison 15234 | -4/Factory | Entered Garrison 15234 | -4/Garrison | Accompanied by 3 allies 15262 | -4/Garrison | Build established: Botlord-Mutant 15328 | -4/Garrison | Triggered checkpoint 15510 | -4/Garrison | Garrison Relay disabled 15532 | -4/Garrison | X0-1V1 caused items to flee you 15604 | -4/Garrison | Discovered new exit (range 3) 15604 | -4/Garrison | X0-1V1 whisked you away to safety 15764 | -4/Garrison | Items stopped fleeing you 15880 | -4/Garrison | Garrison Relay disabled 15929 | -4/Garrison | Spotted B-86 Titan 15933 | -4/Garrison | Triggered checkpoint 15934 | -4/Garrison | Triggered checkpoint 15963 | -4/Garrison | Triggered checkpoint 15968 | -4/Garrison | Triggered checkpoint 16060 | -4/Garrison | Triggered checkpoint 16082 | -4/Garrison | Expanded RIF knowledge: Hotswap 16097 | -4/Garrison | Discovered new exit (range 12) 16135 | -4/Garrison | Garrison Relay disabled 16243 | -4/Garrison | Build established: Botlord-Skirmisher 16264 | -4/Garrison | Triggered checkpoint 16295 | -4/Garrison | Discovered new exit (range 21) 16335 | -4/Garrison | Lost 6 allies 16339 | -4/Garrison | Garrison Relay disabled 16505 | -4/Garrison | Found Fusion Bomb Launcher 16606 | -4/Garrison | Entered Research 16606 | -3/Research | Accompanied by 17 allies 16606 | -3/Research | Evolved 2 slots: Utility x2 16785 | -3/Research | Fabricated O-16 Technician? 16856 | -3/Research | First assault squad dispatched 16955 | -3/Research | Garrison activated, responded to threat 16957 | -3/Research | Lost 6 allies 16971 | -3/Research | Spotted B-86 Titan 16995 | -3/Research | Allies destroyed B-86 Titan 17002 | -3/Research | Identified exit to Garrison 17022 | -3/Research | X0-1V1 announced a LAN party 17047 | -3/Research | Entered Garrison 17047 | -3/Garrison | Accompanied by 2 allies 17074 | -3/Garrison | Lost 16 allies 17240 | -3/Garrison | Triggered checkpoint 17248 | -3/Garrison | Identified exit to Research 17248 | -3/Garrison | X0-1V1 revealed exit location to -3/Research 17295 | -3/Garrison | X0-1V1 destroyed Phase Generator 17295 | -3/Garrison | Phase Generator disabled 17305 | -3/Garrison | Build established: Botlord-Tank 17329 | -3/Garrison | Found Relay Coupler [Proto] 17361 | -3/Garrison | Garrison Relay disabled 17422 | -3/Garrison | Triggered checkpoint 17431 | -3/Garrison | Spotted B-86 Titan 17437 | -3/Garrison | X0-1V1 upgraded hostiles (x3) 17447 | -3/Garrison | Spotted B-90 Cyclops 17480 | -3/Garrison | Triggered checkpoint 17497 | -3/Garrison | X0-1V1 upgraded ally (x1) 17518 | -3/Garrison | Lost 16 allies 17519 | -3/Garrison | X0-1V1 revealed exit location to -3/Research 17538 | -3/Garrison | Lost 7 parts (2n2u3w) 17591 | -3/Garrison | Triggered checkpoint 17706 | -3/Garrison | X0-1V1 activates XOMVISION 17718 | -3/Garrison | Expanded RIF knowledge: Autoassimilate 17765 | -3/Garrison | Garrison Relay disabled 17779 | -3/Garrison | Triggered checkpoint 17792 | -3/Garrison | Discovered exit to Research (range 3) 17851 | -3/Garrison | Discovered exit to Research (range 11) 17861 | -3/Garrison | Found embedded Infiltrators 17909 | -3/Garrison | Triggered checkpoint 17952 | -3/Garrison | Lost 4 allies 18007 | -3/Garrison | Triggered checkpoint 18021 | -3/Garrison | Garrison Relay disabled 18062 | -3/Garrison | Rescued a captive Derelict 18070 | -3/Garrison | Rescued a captive Derelict 18176 | -3/Garrison | Triggered checkpoint 18192 | -3/Garrison | Triggered checkpoint 18207 | -3/Garrison | Garrison Relay disabled 18410 | -3/Garrison | Entered Research 18410 | -3/Research | Accompanied by 12 allies 18480 | -3/Research | Central database locked down 18518 | -3/Research | Identified exit to Quarantine 18540 | -3/Research | Allied Derelicts emerged from ambush trap array 18675 | -3/Research | Found Faulty Exp. Shield Generator 18711 | -3/Research | X0-1V1 announced a LAN party 18783 | -3/Research | Lost 8 allies 18827 | -3/Research | Entered Quarantine 18827 | -3/Quarantine | Accompanied by 13 allies 18923 | -3/Quarantine | X0-1V1 announced a LAN party 18972 | -3/Quarantine | X0-1V1 added 0b10 threat records associated with you (major) 19051 | -3/Quarantine | Identified exit to Research 19051 | -3/Quarantine | X0-1V1 revealed exit location to -2/Research 19135 | -3/Quarantine | Lost 3 allies 19174 | -3/Quarantine | Found Alien Energy Cannon 19187 | -3/Quarantine | Found Alien Artifact 19208 | -3/Quarantine | Garrison activated, responded to threat 19237 | -3/Quarantine | Identified Core Cannon 19237 | -3/Quarantine | Identified Phase Armor 19270 | -3/Quarantine | Lost 6 allies 19323 | -3/Quarantine | Found Subatomic Replicator 19327 | -3/Quarantine | First assault squad dispatched 19383 | -3/Quarantine | Lost 27 allies 19410 | -3/Quarantine | Found Faulty Exp. Melee Analysis Suite 19478 | -3/Quarantine | Lost 3 allies 19478 | -3/Quarantine | System corruption reached 10% 19493 | -3/Quarantine | X0-1V1 sent allied B-99 Colossus (x1) 19520 | -3/Quarantine | Core integrity fell below 50% 19550 | -3/Quarantine | Lost 17 parts (3p4n4u6w) 19554 | -3/Quarantine | Met incapacitated Sigix Warrior 19554 | -3/Quarantine | Lockdown squad dispatched 19584 | -3/Quarantine | Spotted Lightning 19585 | -3/Quarantine | Autoassimilated Lightning with RIF 19589 | -3/Quarantine | Spotted Lightning 19591 | -3/Quarantine | Spotted Lightning 19604 | -3/Quarantine | Assimilated Lightning with formatsys_high 19607 | -3/Quarantine | Assimilated Lightning with formatsys_high 19621 | -3/Quarantine | System corruption reached 30% 19628 | -3/Quarantine | Allies destroyed Lightning 19702 | -3/Quarantine | Lost 4 allies 19761 | -3/Quarantine | Build established: Botlord-Mutant 19983 | -3/Quarantine | Found Alien Reactor 19990 | -3/Quarantine | Entered Research 19990 | -2/Research | Evolved 2 slots: Propulsion x1, Utility x1 20013 | -2/Research | Lost 3 allies 20020 | -2/Research | Lost 7 parts (1p5n1u) 20066 | -2/Research | X0-1V1 sent you to a vault 20070 | -2/Research | Found Prototype Processor 20070 | -2/Research | Identified Exp. Armor Integrity Analyzer 20082 | -2/Research | Found Chaos Jack 20088 | -2/Research | Found Prototype Device 20088 | -2/Research | Identified Exp. Shock Absorption System 20135 | -2/Research | Found Prototype Reactor 20149 | -2/Research | Discovered new exit (range 8) 20320 | -2/Research | Identified exit to Access 20320 | -2/Research | X0-1V1 revealed exit location to -1/Access 20412 | -2/Research | Spotted B-90 Cyclops 20435 | -2/Research | Crushed by falling debris 20436 | -2/Research | System corruption reached 10% 20438 | -2/Research | Found Hvy. Scimitar of Distortion 20454 | -2/Research | Garrison activated, responded to threat 20459 | -2/Research | Identified Vortex Chain Reactor 20468 | -2/Research | Released all parts (14) 20470 | -2/Research | Core integrity fell below 50% 20484 | -2/Research | Core integrity fell below 20% 20487 | -2/Research | Destroyed by G-73 Enforcer with Phase Gun Last Messages --------------- 20478_ U-05 Engineer lays Concrete. 20479_ Slug penetrates Wall. 20479_ U-05 Engineer lays Concrete. 20481_ Slug penetrates H-88 Terminator. 20481_ Slug penetrates P-80 Master. 20481_ U-05 Engineer lays Concrete. 20482_ Slug penetrates G-73 Enforcer. 20482_ U-05 Engineer lays Concrete. 20483_ Penetrated by Slug. 20483_ U-05 Engineer lays Concrete. 20484_ Penetrated by Slug. 20484_ Slug penetrates Wall. 20484_ X0-1V1: "One team is clearly getting beat up here. Hardly fair." H-88 Terminator sparkles and shines. P-80 Master sparkles and shines. G-73 Enforcer sparkles and shines. 20484_ U-05 Engineer lays Concrete. 20485_ Penetrated by Slug. 20487_ X0-1V1 guffaws! Map ----- +----------------------------------------------------+ | """ ""# # #????# #?????????????????? | | #### #?????# #?????????????????? | | ####"####??# [ #?????????????????? | | # ##?# #?????????????????? | | # #?# #?????????????????? | | ####?# #?????????????????? | | ## #?# #?????????????????? | | ###### #?????????????????? | | "T" ## # # #?????????????????? | | ### ####+######?????????????????? | | # # % #?????????????????????? | | ## #?????????????????????? | | ###+##### ##!%% #?????????????????????? | | # !%/||!! #?????????????????????? | | " [%=!%=/* ! #######?????????????????????? | | ? """ # ! !!![! #??????????????????????? | | ????????# !!]*p #######?????????????????????? | | ????????# g #?????????????????????? | | ????????# #?????????????????????? | | ????????# ""Y"" #?????????????????????? | | ????????# """"" #?????????????????????? | | ????????#########+##### #??#####??????????????? | | ??????????????????????# #?""G""#??????????????? | | ??????????????????????# #;! " ####???????????? | | ??????????????????????# [%= ????????? | | ??????????????????????+ @ ! ????????? | | ??????????????????????# ????????? | | ??????????????????????# =[ %=! ????????? | | ??????????????????????# = ?????????? | | ??????????????????????# """ ?????????? | | ??????????????????????# """?????????????? | | ?????????????????????? ""??????????????? | | ?????????????????????? ?????????????? | | ????????????????????? ?????????????? | | ????????????????????? ????????????? | | ???????????????????? ###+######????????????? | | ???????????????????? g #?????????????????????? | | ??????????????????? #?????????????????????? | | ??????????????????? gg#?????????????????????? | | ????????????????????? g ??????????????????????? | | ??????????????????????? ??????????????????????? | | ?????????????????????????????????????????????????? | | ?????????????????????????????????????????????????? | | ?????????????????????????????????????????????????? | | ?????????????????????????????????????????????????? | | ?????????????????????????????????????????????????? | | ?????????????????????????????????????????????????? | | ?????????????????????????????????????????????????? | | ?????????????????????????????????????????????????? | | ?????????????????????????????????????????????????? | +----------------------------------------------------+ Best States ------------- Heat Dissipation 80 Energy Generation 75 Energy Capacity 1800 Matter Stores 1100 Matter Capacity 1100 Sight Range 28 Terrain Scan Density 10 Jamming Range 12 Cloak Strength 4 Power Amplification 40 Additional Mass Support 16 Armor Coverage 750 Resistance: TH 30 Resistance: EM 49 Utility Shielding 66 Weapon Cycling 25 Evasion (%) 50 Targeting Accuracy 5 Core Analysis 6 Armor Integrity Analysis 50 Kinecelleration 40 Offensive Hacking 20 Defensive Hacking 10 Relay Coupler Types 8 Relay Coupler Value 225 Authchip Count 4 Item Schematics ----------------- Huge Storage Unit | -10/Materials | Hacked Imp. Lightning Gun | -3/Quarantine | Archive Ionic Axe | -3/Quarantine | Archive Hvy. Wave Gun | -3/Quarantine | Archive Adv. KE Penetrator | -3/Quarantine | Archive Neutron Missile Launcher | -3/Quarantine | Archive Robot Schematics ------------------ O-16 Technician | -10/Materials | Hacked S-43 Plague | -3/Quarantine | Archive Fabricated ------------ O-16 Technician | x1 | -7/Factory | Authchip H-66 Slayer | x2 | -6/Factory | Preloaded, Authchip O-16 Technician | x1 | -3/Research | Authchip Repaired ---------- Nothing Studied --------- Arm. Wheel | -9/Materials | Hacked Wheel | -9/Materials | Hacked Remote Datajack | -6/Factory | Hacked Arm. Huge Wheel | -6/Factory | Hacked Hvy. Flak Cannon | -6/Factory | Hacked Com. Wheel | -6/Factory | Hacked Imp. Remote Datajack | -3/Research | Hacked Quantum Rifle | -3/Quarantine | Hacked Arm. Heavy Treads | -3/Quarantine | Hacked Centrium Wheel | -3/Quarantine | Hacked Alien Tech Used ----------------- Phase Armor Core Cannon Achievements -------------- Live, Flee, And Rebuild Official Business Challenges ------------ None Game ------ Seed LayeredMetaMultitool Manual? 0 Play Time 06:58:44 Cumulative 178.3 hours Start 2026.09.18 @ 22:17:14 End 2026.09.19 @ 17:07:34 Sessions 3 Manual Loads 0 Difficulty Rogue Special Mode None Game No. 80 Rogue 80 Adventurer 0 Explorer 0 Win Type - Total 4 Types 3/0/0/0/1/0/0/0/0/0 Lore% 19 Gallery% 53 Achievement% 37 Wizard Run 0 Options --------- Layout 1 ASCII 0 Keyboard 0 Movement Arrows Keybinds 0 Fullscreen 1 Font 24/Smallcaps Map View 50x35 Zoom Use 0% Tactical HUD 1 Map Filters NONE Filters NONE Steam 1 RUN: ddd72c42-0a79-4b56-b514-b62745e976f7